Cogmind - Beta 14 @@@ ROGUE MODE // 2024.08.21 @ 00:24:32 Player: APerTAS Result: Destroyed by H-77 Assassin with Coil Gun Performance ------------- Evolutions (6) 3000 Regions Visited (7) 1400 Robots Destroyed (20) 100 Value Destroyed (720) 720 Prototype IDs (2) 40 Alien Tech Used (0) 0 Bonus (470) 470 TOTAL SCORE: 5730 Bonus ------- Pacifist 470 Cogmind --------- Core Integrity 0/1150 Matter 158/300 Energy 100/100 System Corruption 1% Temperature Cool (0) Movement Core (50) Location -4/Factory Parts ------- > --- POWER (2) -------- (None) > --- PROPULSION (4) --- (None) > --- UTILITY (6) ------ (None) > --- WEAPON (7) ------- (None) > --- INVENTORY (5) ---- (None) Peak State ------------ > --- POWER ------------ Enhanced Fission Core > --- PROPULSION ------- Field Propulsion Drive Field Propulsion Drive > --- UTILITY ---------- (None) > --- WEAPON ----------- Rocket Launcher Rocket Launcher Rocket Launcher > --- INVENTORY -------- (None) [Rating: 25] Favorites ----------- Power Enhanced Fission Core Power Core Enhanced Fission Core Reactor Cold Fusion Reactor Propulsion Field Propulsion Drive Flight Unit Field Propulsion Drive Utility Hacking Suite Device Advanced Heat Sink Processor Armor Integrity Analyzer Hackware Hacking Suite Weapon Rocket Launcher Ballistic Gun Autogun Launcher Rocket Launcher Impact Weapon Hammer Build | -11 -10 -9 -8 -7 -6 -5 -4 ------- Run | Yrd Mat Mat Mat Fac Fac Fac Fac Slots Evolved 12 | . . 2 2 2 2 2 2 Power 1 | . . . . . . 1 . Propulsion 2 | . . . . . 2 . . Utility 4 | . . . . 2 . 1 1 Weapon 5 | . . 2 2 . . . 1 Parts Attached 30 | . . 1 7 8 . 11 3 Power 2 | . . . . . . 1 1 Engine . | . . . . . . . . Core 1 | . . . . . . 1 . Reactor 1 | . . . . . . . 1 Propulsion 4 | . . . . . . 3 1 Treads . | . . . . . . . . Leg . | . . . . . . . . Wheel . | . . . . . . . . Hover . | . . . . . . . . Flight 4 | . . . . . . 3 1 Utility 6 | . . . 1 1 . 3 1 Device 2 | . . . . . . 1 1 Storage . | . . . . . . . . Processor 3 | . . . . 1 . 2 . Hackware 1 | . . . 1 . . . . Protection . | . . . . . . . . Artifact . | . . . . . . . . Weapon 18 | . . 1 6 7 . 4 . Energy Gun . | . . . . . . . . Energy Cannon . | . . . . . . . . Ballistic Gun 1 | . . . . . . 1 . Ballistic Cannon . | . . . . . . . . Launcher 16 | . . 1 5 7 . 3 . Special Weapon . | . . . . . . . . Impact Weapon 1 | . . . 1 . . . . Slashing Weapon . | . . . . . . . . Piercing Weapon . | . . . . . . . . Special Melee Weapon . | . . . . . . . . Unidentified Prototypes 2 | . . . . . . 1 1 Parts Lost 5 | . . . 1 . . 2 2 Power . | . . . . . . . . Propulsion 2 | . . . . . . 1 1 Utility 2 | . . . . . . 1 1 Weapon 1 | . . . 1 . . . . Highest Loss Streak 2 | . . . 1 . . 2 2 To Critical Strikes . | . . . . . . . . Average Slot Usage (%) 7 | . . . 9 18 . 8 . Flight 1 | . . . . . . 5 . Hackware 1 | . . . 2 6 . . . Launcher 2 | . . . 2 7 . . . Peak Build Rating 25 | . . 2 10 17 . 25 12 Average Rating 4 | . . . 2 7 . 9 1 On Entrance . | . . . 1 4 . . . Naked Turns 412 | . 55 83 30 13 19 49 163 Heaviest Build 20 | . . . 2 20 . 16 10 Greatest Support 18 | 3 3 3 3 3 3 18 4 Greatest Overweight (x) 6 | . . . . 6 . 1 3 Average Overweight (x) . | . . . . . . . . Largest Inventory Capacity 5 | 5 5 5 5 5 5 5 5 Average Capacity 5 | 5 5 5 5 5 5 5 5 Most Carried 5 | . . 5 5 5 3 3 . Average Carried 2 | . . 2 4 3 3 1 . Final Capacity 5 | 5 5 5 5 5 5 5 5 Final Carried 5 | . . 5 5 3 3 . . Class Distribution -------------------- 100% | Mutant Dominant Class ---------------- Mutant | -10/Materials Mutant | -9/Materials Mutant | -8/Materials Mutant | -7/Factory Mutant | -6/Factory Mutant | -5/Factory Mutant | -4/Factory Resources | -11 -10 -9 -8 -7 -6 -5 -4 ----------- Run | Yrd Mat Mat Mat Fac Fac Fac Fac Matter Collected 687 | 135 . . 208 78 149 51 66 Remotely . | . . . . . . . . Salvage Created 519 | . . . 317 176 . 26 . Parts 17 | . . . 8 5 . 4 . Haulers Intercepted . | . . . . . . . . Recyclers Shooed . | . . . . . . . . Parts Field Recycled . | . . . . . . . . Retrieved Matter . | . . . . . . . . Parts Self-Destructed . | . . . . . . . . Prevented . | . . . . . . . . Kills | -11 -10 -9 -8 -7 -6 -5 -4 ------- Run | Yrd Mat Mat Mat Fac Fac Fac Fac Combat Hostiles Destroyed 16 | . . . 6 5 . 5 . Melee 1 | . . . 1 . . . . AOE 13 | . . . 3 5 . 5 . Classes Destroyed 7 | . . . 5 1 . 1 . Builder 1 | . . . 1 . . . . Recycler 3 | . . . 1 2 . . . Swarmer 5 | . . . . . . 5 . Grunt 6 | . . . 3 3 . . . Brawler 1 | . . . . 1 . . . Sentry 2 | . . . 1 1 . . . Hunter 2 | . . . 2 . . . . Best Kill Streak 7 | . . . 3 7 . 5 . Combat Bots Only 5 | . . . 3 5 . 5 . Max Kills in Single Turn 4 | . . . 2 3 . 4 . Gunslinging . | . . . . . . . . Exploded 4 | . . . 2 2 . 4 . Melee 1 | . . . 1 . . . . Uniques/NPCs Destroyed . | . . . . . . . . Combat | -11 -10 -9 -8 -7 -6 -5 -4 -------- Run | Yrd Mat Mat Mat Fac Fac Fac Fac Hostile Shots Fired 390 | . 13 14 49 120 . 54 140 Missed 153 | . 4 5 15 56 . 23 50 Damage Taken 3767 | . 146 133 474 867 . 634 1513 Core 2877 | . 146 133 356 691 . 382 1169 Absorbed by Shields . | . . . . . . . . Core Remaining (%) 57 | 100 41 66 35 1 100 61 . Volleys Fired 13 | . . . 2 7 . 4 . Largest 5 | . . . 5 5 . 3 . Hottest 165 | . . . 165 165 . 99 . Shots Fired 42 | . . . 10 26 . 6 . Gun 2 | . . . . . . 2 . Cannon . | . . . . . . . . Launcher 40 | . . . 10 26 . 4 . Special . | . . . . . . . . Kinetic 2 | . . . . . . 2 . Thermal . | . . . . . . . . Explosive 40 | . . . 10 26 . 4 . Electromagnetic . | . . . . . . . . Robot Hit Streak 8 | . . . 2 7 . 8 . Robot Miss Streak 3 | . . . 2 3 . 1 . Penetration Max . | . . . . . . . . Secondary Targets . | . . . . . . . . Shots Hit Robots 30 | . . . 16 11 . 3 . Core Hits 48 | . . . 8 24 . 13 3 Critical Kills . | . . . . . . . . Critical Parts Destroyed 3 | . . . 3 . . . . Critical Strikes 3 | . . . 3 . . . . Smash 3 | . . . 3 . . . . Melee Attacks 15 | . . . 15 . . . . Impact 15 | . . . 15 . . . . Slashing . | . . . . . . . . Piercing . | . . . . . . . . Sneak Attacks 2 | . . . 2 . . . . Combat Hostiles . | . . . . . . . . Follow-up Attacks . | . . . . . . . . Damage Inflicted 2142 | . 48 . 799 764 . 495 36 Guns 11 | . . . . . . 11 . Cannons . | . . . . . . . . Explosions 1617 | . . . 405 747 . 465 . Melee 385 | . . . 385 . . . . Ramming 129 | . 48 . 9 17 . 19 36 Kinetic 11 | . . . . . . 11 . Thermal . | . . . . . . . . Explosive 1617 | . . . 405 747 . 465 . Electromagnetic . | . . . . . . . . Impact 385 | . . . 385 . . . . Slashing . | . . . . . . . . Piercing . | . . . . . . . . Highest Corruption 1 | . . . . 1 . 1 1 Average Corruption 1 | . . . . 1 . 1 1 Corruption Purged . | . . . . . . . . Corruption Blocked . | . . . . . . . . Effects 2 | . . . . . . . 2 Energy Discharges 2 | . . . . . . . 2 Overload Shots . | . . . . . . . . Overflow Damage 189 | . . . 183 . . 6 . Projectiles . | . . . . . . . . Explosions 18 | . . . 12 . . 6 . Melee 171 | . . . 171 . . . . Knockbacks 2 | . . . 2 . . . . Impact 2 | . . . 2 . . . . Kinetic . | . . . . . . . . Secondary . | . . . . . . . . Self-Inflicted Damage 128 | . 22 . 4 75 . 10 17 Shots 3 | . . . . 2 . 1 . Rammed 35 | . 11 . 2 5 . 3 14 Targets Rammed 35 | . 11 . 2 5 . 3 14 Kicked . | . . . . . . . . Crushed . | . . . . . . . . Highest Temperature 202 | . . . 113 202 . 15 . Average Temperature 80 | . . . 60 105 . 8 . Received Heat Transfer 537 | . 66 45 135 189 . 81 21 Effects 1 | . . . . 1 . . . Energy Bleed 1 | . . . . 1 . . . Siege Activations . | . . . . . . . . Robots Corrupted 3 | . . . 3 . . . . Combat Hostiles 2 | . . . 2 . . . . Parts Fried 7 | . . . 7 . . . . Impact Corruptions 7 | . . . 7 . . . . Robots Melted . | . . . . . . . . Combat Hostiles . | . . . . . . . . Parts Melted . | . . . . . . . . Heat Transferred . | . . . . . . . . Parts Sabotaged . | . . . . . . . . Parts Stolen . | . . . . . . . . Parts Stripped . | . . . . . . . . Power Chain Reactions . | . . . . . . . . Alert | -11 -10 -9 -8 -7 -6 -5 -4 ------- Run | Yrd Mat Mat Mat Fac Fac Fac Fac Peak Influence 384 | . 45 63 291 384 187 308 365 Initial 187 | . . 18 26 132 187 91 150 Average 181 | . 27 41 193 238 187 161 256 Maximum Alert Level 1 | . . . 1 1 . 1 1 Low Security (%) 56 | 100 100 100 42 59 100 58 28 Level 1 43 | . . . 57 40 . 41 71 Level 2 . | . . . . . . . . Level 3 . | . . . . . . . . Level 4 . | . . . . . . . . Level 5 . | . . . . . . . . High Security . | . . . . . . . . Max Security . | . . . . . . . . Squads Dispatched 8 | . 1 . . 1 . 4 2 Investigation 4 | . . . . . . 2 2 Extermination . | . . . . . . . . Reinforcement 4 | . 1 . . 1 . 2 . Assault . | . . . . . . . . Garrison . | . . . . . . . . Intercept . | . . . . . . . . Searches Triggered . | . . . . . . . . Construction Impeded . | . . . . . . . . Haulers Reinforced . | . . . . . . . . Active Scanning Responses . | . . . . . . . . Cargo Convoy Interrupts . | . . . . . . . . Stealth | -11 -10 -9 -8 -7 -6 -5 -4 --------- Run | Yrd Mat Mat Mat Fac Fac Fac Fac Distress Signals 4 | . 1 . 1 . . . 2 Communications Jammed . | . . . . . . . . Distress Signals . | . . . . . . . . Times Spotted 75 | . 8 4 12 13 . 14 24 Peak Tracking Total 11 | . 7 4 6 7 . 7 11 Tactical Retreats 10 | . . . 1 1 . 2 6 Traps | -11 -10 -9 -8 -7 -6 -5 -4 ------- Run | Yrd Mat Mat Mat Fac Fac Fac Fac Traps Triggered 4 | . 1 . . . . 1 2 Indirectly . | . . . . . . . . Trap Hack Attempts . | . . . . . . . . Triggered . | . . . . . . . . Disarmed . | . . . . . . . . Reprogrammed . | . . . . . . . . Reused . | . . . . . . . . Traps Extracted . | . . . . . . . . Installed . | . . . . . . . . Triggered . | . . . . . . . . Time Bombs Activated 1 | . . . . . . 1 . Exploded 1 | . . . . . . 1 . Machines | -11 -10 -9 -8 -7 -6 -5 -4 ---------- Run | Yrd Mat Mat Mat Fac Fac Fac Fac Machines Disabled 2 | . . . . 2 . . . Max in Single Turn 2 | . . . . 2 . . . Machines Repaired . | . . . . . . . . Machines Dismantled . | . . . . . . . . Machines Sabotaged . | . . . . . . . . Overloaded Fab Kills . | . . . . . . . . Hacking | -11 -10 -9 -8 -7 -6 -5 -4 --------- Run | Yrd Mat Mat Mat Fac Fac Fac Fac Machines Accessed 5 | . . . 1 1 . 1 2 Terminals 2 | . . . 1 1 . . . Fabricators 1 | . . . . . . . 1 Repair Stations 1 | . . . . . . . 1 Recycling Units . | . . . . . . . . Scanalyzers . | . . . . . . . . Garrison Access 1 | . . . . . . 1 . Total Hacks 11 | . . . 5 1 . 2 3 Successful 5 | . . . 3 . . 1 1 Failed 6 | . . . 2 1 . 1 2 Catastrophic 5 | . . . 1 1 . 1 2 Database Lockouts . | . . . . . . . . Manual 9 | . . . 5 1 . 2 1 Terminals 6 | . . . 5 1 . . . Fabricators 1 | . . . . . . . 1 Repair Stations 2 | . . . . . . . 2 Recycling Units . | . . . . . . . . Scanalyzers . | . . . . . . . . Garrison Access 2 | . . . . . . 2 . Terminal Hacks 1 | . . . 1 . . . . Zone Layout 1 | . . . 1 . . . . Fabricator Hacks . | . . . . . . . . Repair Station Hacks . | . . . . . . . . Recycling Unit Hacks . | . . . . . . . . Scanalyzer . | . . . . . . . . Garrison Access Hacks . | . . . . . . . . Unauthorized Hacks 4 | . . . 2 . . 1 1 Terminals 2 | . . . 2 . . . . Track 1 | . . . 1 . . . . Assimilate 1 | . . . 1 . . . . Fabricators 1 | . . . . . . . 1 Download 1 | . . . . . . . 1 Repair Stations . | . . . . . . . . Recycling Units . | . . . . . . . . Scanalyzers . | . . . . . . . . Garrison Access 1 | . . . . . . 1 . Reprogram 1 | . . . . . . 1 . Data Cores Recovered . | . . . . . . . . Used . | . . . . . . . . Hacking Detections 4 | . . . 1 1 . 1 1 Full Trace Events 3 | . . . 1 . . 1 1 Feedback Events . | . . . . . . . . Feedback Blocked . | . . . . . . . . Robot Schematics Acquired . | . . . . . . . . Robots Built . | . . . . . . . . Authchips . | . . . . . . . . Time . | . . . . . . . . Total Robot Build Rating . | . . . . . . . . Part Schematics Acquired 1 | . . . . . . . 1 Parts Built . | . . . . . . . . Authchips . | . . . . . . . . Time . | . . . . . . . . Total Part Build Rating . | . . . . . . . . Parts Repaired . | . . . . . . . . Time . | . . . . . . . . Parts Recycled . | . . . . . . . . Recycled Matter . | . . . . . . . . Retrieved Matter . | . . . . . . . . Retrieved Components . | . . . . . . . . Parts Scanalyzed . | . . . . . . . . Part Schematics Acquired . | . . . . . . . . Parts Damaged . | . . . . . . . . Bothacking | -11 -10 -9 -8 -7 -6 -5 -4 ------------ Run | Yrd Mat Mat Mat Fac Fac Fac Fac Used RIF Installer . | . . . . . . . . Robots Hacked . | . . . . . . . . Non-combat . | . . . . . . . . Combat . | . . . . . . . . Robot Hacks Applied . | . . . . . . . . Relay Couplers Released . | . . . . . . . . Fabnet Peak Effective % . | . . . . . . . . Robots Rewired . | . . . . . . . . Allies Hacked . | . . . . . . . . Hacks Repelled . | . . . . . . . . Allies | -11 -10 -9 -8 -7 -6 -5 -4 -------- Run | Yrd Mat Mat Mat Fac Fac Fac Fac Total Allies 4 | . . . . . . 4 . Largest Group 4 | . . . . . . 4 . Highest-Rated Group 116 | . . . . . . 116 . Highest-Rated Ally 29 | . . . . . . 29 . Total Orders . | . . . . . . . . Ally Attacks 12 | . . . . . . 12 . Total Damage 194 | . . . . . . 194 . Kills . | . . . . . . . . Allies Corrupted . | . . . . . . . . Allies Melted 1 | . . . . . . 1 . Intel | -11 -10 -9 -8 -7 -6 -5 -4 ------- Run | Yrd Mat Mat Mat Fac Fac Fac Fac Robot Analysis Total . | . . . . . . . . Derelict Logs Recovered . | . . . . . . . . Drone Launches 4 | . . . . . . . 4 Drone Recoveries 3 | . . . . . . . 3 Exploration | -11 -10 -9 -8 -7 -6 -5 -4 ------------- Run | Yrd Mat Mat Mat Fac Fac Fac Fac Turns Passed 855 | 11 55 84 175 149 19 166 196 Spaces Moved 1296 | 21 87 156 185 211 37 286 313 Core 1121 | 21 87 156 185 211 37 126 298 Treads . | . . . . . . . . Legs . | . . . . . . . . Wheels . | . . . . . . . . Hover . | . . . . . . . . Flight 175 | . . . . . . 160 15 Fastest Speed 35 | 50 50 50 50 50 50 35 35 Average Speed 49 | 50 50 50 50 51 50 46 50 Slowest Speed 350 | 50 50 50 50 350 50 117 200 Overloaded Moves . | . . . . . . . . Propulsion Burnouts . | . . . . . . . . Robots Hopped 2 | . . . . . . . 2 Cave-ins Triggered . | . . . . . . . . Exploration Rate (%) 14 | 3 33 18 32 9 1 10 10 Regions Visited 7 Branch Regions . Pre-discovered Areas . | . . . . . . . . Known Exits Taken . | . . . . . . . . Unknown Exits Taken 7 | 1 1 1 1 1 1 1 . Scrap Searched . | . . . . . . . . Spaces Dug . | . . . . . . . . Terrain Destroyed 74 | . . . 19 38 . 17 . Melee . | . . . . . . . . Projectile . | . . . . . . . . AOE 74 | . . . 19 38 . 17 . Terrain Rammed . | . . . . . . . . Walls Destroyed . | . . . . . . . . Machines Disabled . | . . . . . . . . Actions | -11 -10 -9 -8 -7 -6 -5 -4 --------- Run | Yrd Mat Mat Mat Fac Fac Fac Fac Total 1444 | 20 97 161 236 235 36 313 346 Wait 43 | . . . 21 . . 4 18 Move 1285 | 20 86 155 184 210 36 285 309 Hop 2 | . . . . . . . 2 Pick Up 4 | . . 4 . . . . . Fast Attach 15 | . . 1 2 1 . 8 3 Attach 15 | . . . 5 7 . 3 . Detach 11 | . . 1 5 5 . . . Swap . | . . . . . . . . Drop 4 | . . . . . . 4 . Fire 13 | . . . 2 7 . 4 . Melee 15 | . . . 15 . . . . Ram 35 | . 11 . 2 5 . 3 14 Kick . | . . . . . . . . Crush . | . . . . . . . . Escape Stasis . | . . . . . . . . Rewire . | . . . . . . . . Trap 2 | . . . . . . 2 . Miscellaneous . | . . . . . . . . Route ------- -11/Scrapyard -10/Materials (discovered 2 exits: [*Mat] / [*Min]) -9/Materials -8/Materials -7/Factory -6/Factory -5/Factory -4/Factory History --------- Turn | Location | Event 3 | -11/Scrapyard | Discovered new exit (range 16) 12 | -11/Scrapyard | Entered Materials 43 | -10/Materials | Discovered new exit (range 15) 60 | -10/Materials | Core integrity fell below 50% 66 | -10/Materials | Discovered new exit (range 3) 67 | -10/Materials | Entered another Materials area 67 | -9/Materials | Evolved 2 slots: Weapon x2 150 | -9/Materials | Discovered new exit (range 3) 151 | -9/Materials | Entered another Materials area 151 | -8/Materials | Evolved 2 slots: Weapon x2 263 | -8/Materials | Core integrity fell below 50% 318 | -8/Materials | Build established: Mutant 318 | -8/Materials | Discovered new exit (range 14) 326 | -8/Materials | Entered Factory 326 | -7/Factory | Evolved 2 slots: Utility x2 462 | -7/Factory | Released all parts (4) 467 | -7/Factory | Discovered new exit (range 12) 468 | -7/Factory | Core integrity fell below 50% 472 | -7/Factory | Core integrity fell below 20% 475 | -7/Factory | Entered another Factory area 475 | -6/Factory | Evolved 2 slots: Propulsion x2 490 | -6/Factory | Discovered new exit (range 5) 494 | -6/Factory | Entered another Factory area 494 | -5/Factory | Evolved 2 slots: Power x1, Utility x1 517 | -5/Factory | Noticed a derelict Sapper rigging charges 608 | -5/Factory | Released all parts (4) 647 | -5/Factory | Discovered new exit (range 14) 660 | -5/Factory | Entered another Factory area 660 | -4/Factory | Evolved 2 slots: Utility x1, Weapon x1 736 | -4/Factory | Core integrity fell below 50% 747 | -4/Factory | Released all parts (1) 790 | -4/Factory | Core integrity fell below 20% 856 | -4/Factory | Destroyed by H-77 Assassin with Coil Gun Last Messages --------------- 00791_ Slug penetrates Wall. 00795_ W-44 Eye sends out distress signal. 00796_ Slug penetrates Wall. 00796_ Slug penetrates Matter Pump. 00796_ Matter Pump disabled. 00798_ K-01 Serf collects debris. 00812_ Pressure Siphon comes online. 00812_ K-01 Serf collects debris. 00814_ K-01 Serf cleans the Pressure Siphon. 00817_ W-44 Eye sends out distress signal. 00825_ K-01 Serf cleans the Fusion Modulator. 00845_ Slug penetrates U-05 Engineer. 00845_ Slug penetrates Wall. 00845_ Penetrated by Slug. 00852_ Connecting with Repair Station... 00852_ ALERT: Suspicious activity at Repair Station F005. Dispatching Investigation squad. 00855_ Penetrated by Slug. 00855_ Slug penetrates Wall. 00856_ Penetrated by Slug. Map ----- +----------------------------------------------------+ | ?????????????????????????????????????????????????? | | ?????????????????????????????????????????????????? | | ?????????????????????????????????????????????????? | | ?????????????????????????????????????????????????? | | ?????????????????????????????????????????????????? | | ?????????????????????????????????????????????????? | | ?????????????????????????????????????????????????? | | ?????????????????????????????????????????????????? | | ?????????????????????????????????????????????????? | | ?????????????????????????????????????????????????? | | ?????????????????????????????????????????????????? | | ?????????????????????????????????????????????????? | | ?????????????????????????????????????????????????? | | ?????????????????????????????????????????????????? | | ????????????#########????????????????????????????? | | ????????????# #????????????????????????????? | | ????????????# #????????????????????????????? | | ????????????# """" #????????????????????????????? | | ????????????# """" #????????????????????????????? | | ????????????# """" #????????????????????????????? | | ????????????# """" ###################??????????? | | ????????????# """" # u R?????????? | | ????????????# """" # h ?????????? | | ????????????# g h ????????? | | ????????????# """" # ????????? | | +???#+#?#+#?# """" # @ ????????? | | #?## #?# #?# """" ####;#### #####????????????? | | #?# #?# #?# """" ## #?? #????????????????? | | #??T #?# #?# """" ## """ #????????????????????? | | #??# #?# #?# """" ## """ #????????????????????? | | #??# ### ### ## """ #????????????????????? | | #### / ## #????????????????????? | | ^ ########### " "" #????????????????????? | | #?????????# "R"" #????????????????????? | | """ ]!= #?????????# """" #????????????????????? | | """ !== ##????????# #????????????????????? | | """ !== #????????########????????????????????? | | #????????????????????????????????????? | | +????????????????????????????????????? | | /###### #????????????????????????????????????? | | ## #????????????????????????????????????? | | ########????????????????????????????????????? | | #???????????????????????????????????????????? | | #???????????????????????????????????????????? | | #???????????????????????????????????????????? | | #???????????????????????????????????????????? | | #???????????????????????????????????????????? | | #???????????????????????????????????????????? | | #???????????????????????????????????????????? | | #???????????????????????????????????????????? | +----------------------------------------------------+ Best States ------------- Heat Dissipation 43 Energy Generation 21 Energy Capacity 350 Matter Stores 300 Matter Capacity 300 Sight Range 16 Terrain Scan Density 10 Evasion (%) 61 Armor Integrity Analysis 30 Offensive Hacking 10 Item Schematics ----------------- Arm. Heavy Treads | -4/Factory | Downloaded Robot Schematics ------------------ None Fabricated ------------ Nothing Alien Tech Used ----------------- None Achievements -------------- None Challenges ------------ None Game ------ Seed CompanionCoilImmobilizer Manual? 0 Play Time 00:18:00 Cumulative 26.3 hours Start 2024.08.21 @ 00:09:35 End 2024.08.21 @ 00:24:32 Sessions 1 Manual Loads 0 Difficulty Rogue Special Mode None Game No. 91 Rogue 91 Adventurer 0 Explorer 0 Win Type - Total 0 Types 0/0/0/0/0/0/0/0/0 Lore% 30 Gallery% 26 Achievement% 32 Wizard Run 0 Options --------- Layout 0 ASCII 0 Keyboard 0 Movement Arrows Keybinds 0 Fullscreen 1 Font 24/Terminus Map View 64x52 Zoom Use 0% Tactical HUD 1 Map Filters NONE Filters NONE Steam 1 RUN: ab265bfa-d836-4c01-886d-197afe2a7fe2